bitfinex/quotes_SOLUSD_20240607
["timestamp","ask_amount","ask_price","bid_price","bid_amount"]
[1717767387165,2.1594,171.34,171.28,4.3202]
[1717767387381,2.1594,171.34,171.3,2.1598]
[1717767387671,2.1595,171.33,171.3,2.1598]
[1717767387979,2.1595,171.33,171.29,2.16]
[1717767389082,2.1595,171.33,171.3,2.1599]
[1717767389287,2.1595,171.34,171.3,2.1599]
[1717767389787,2.1595,171.34,171.31,2.1598]
[1717767389994,2.1593,171.35,171.31,2.1598]
[1717767390654,2.1592,171.36,171.32,2.1596]
[1717767390874,2.1593,171.35,171.31,2.1597]
[1717767391556,2.1594,171.34,171.26,155.05]
[1717767391765,2.1594,171.34,171.3,2.1598]
[1717767392076,10.7336,171.37,171.26,155.05]
[1717767392077,2.1595,171.33,171.29,2.16]
[1717767392247,0.3452273,171.35,171.26,35.05]
[1717767392451,2.1598,171.31,171.25,4.321]
[1717767392652,2.1597,171.32,171.25,4.321]
[1717767392873,2.1596,171.33,171.29,2.16]
[1717767393173,2.1595,171.34,171.3,2.1599]
[1717767394478,2.1595,171.33,171.3,2.1599]
[1717767394848,2.1595,171.34,171.3,2.1599]
[1717767395055,2.1593,171.35,171.31,2.1597]
[1717767395269,2.1592,171.36,171.32,2.1596]
[1717767395488,2.1591,171.37,171.33,2.1594]
[1717767396355,2.1591,171.36,171.32,2.1596]
[1717767396555,2.1593,171.35,171.31,2.1597]
[1717767397374,4.3185,171.36,171.29,2.1599]
[1717767397578,2.1596,171.33,171.29,2.16]
[1717767397753,2.1595,171.34,171.3,2.1599]
[1717767398873,16.5315,171.41,171.26,120.0]
[1717767398874,0.3452273,171.4,171.26,120.0]
[1717767399182,2.1596,171.33,171.26,120.0]
[1717767399403,2.1595,171.34,171.26,124.3208]
[1717767399682,2.1595,171.34,171.29,2.16]
[1717767400154,2.1596,171.33,171.29,2.16]
[1717767400767,2.1594,171.34,171.3,2.1599]
[1717767401277,2.1594,171.34,171.26,124.3207]
[1717767403775,28.6349,171.4,171.32,2.1596]
[1717767404080,2.1591,171.37,171.32,2.1596]
[1717767404390,2.1593,171.35,171.31,2.1597]
[1717767405091,2.1592,171.36,171.32,2.1596]
[1717767405593,2.1591,171.37,171.28,155.05]
[1717767405787,2.1591,171.37,171.32,2.1595]
[1717767405961,2.1591,171.37,171.33,2.1594]
[1717767410490,2.1592,171.36,171.33,2.1594]
[1717767410789,2.1592,171.36,171.32,2.1596]
[1717767411170,2.1592,171.36,171.33,2.1595]
[1717767412170,2.1593,171.35,171.28,41.6255]
[1717767412485,2.1593,171.35,171.31,2.1597]
[1717767412875,2.1592,171.36,171.29,4.32]
[1717767413185,2.1591,171.37,171.33,2.1595]
[1717767413968,2.1592,171.36,171.32,2.1596]
[1717767414468,2.1593,171.35,171.32,2.1596]
[1717767414988,2.1592,171.36,171.32,2.1596]
[1717767416191,2.1592,171.36,171.33,2.1595]
[1717767417699,2.1591,171.37,171.33,2.1595]
[1717767419993,2.1592,171.36,171.33,2.1595]
[1717767420694,2.1591,171.37,171.33,2.1595]
[1717767420889,6.477,171.38,171.29,4.3199]
[1717767421193,2.1594,171.35,171.31,2.1597]
[1717767422404,2.1594,171.35,171.29,4.3199]
[1717767422897,2.1594,171.34,171.29,4.3199]
[1717767423274,2.1594,171.34,171.26,155.05]
[1717767423275,2.1595,171.33,171.3,2.1599]
[1717767423779,2.1594,171.34,171.3,2.1599]
[1717767424195,2.1594,171.34,171.31,2.1597]
[1717767425085,2.1594,171.34,171.28,4.3203]
[1717767426304,4.3184,171.36,171.28,4.3203]
[1717767426475,2.1595,171.33,171.28,4.3203]
[1717767427909,0.3452273,171.35,171.24,6.1021]
[1717767428082,2.1599,171.31,171.25,4.321]
[1717767428286,2.1599,171.31,171.28,2.1601]
[1717767428615,2.1597,171.32,171.26,4.3209]
[1717767429178,2.1597,171.32,171.29,2.16]
[1717767430097,2.1597,171.32,171.28,2.1601]
[1717767430411,2.16,171.3,171.25,4.3209]
[1717767430706,2.16,171.3,171.27,2.1602]
[1717767431111,2.1598,171.31,171.28,2.1602]
[1717767431413,2.1598,171.31,171.27,2.1602]
[1717767431785,2.1599,171.3,171.27,2.1602]
[1717767432708,6.0911,171.3,171.21,35.05]
[1717767432898,2.1601,171.29,171.26,2.1604]
[1717767433713,2.1602,171.28,171.23,4.3214]
[1717767433897,2.1602,171.28,171.2,35.05]
[1717767434094,2.1601,171.29,171.26,2.1604]
[1717767434692,2.1599,171.31,171.27,2.1602]
[1717767435016,2.1599,171.31,171.21,155.05]
[1717767435017,2.1599,171.31,171.28,2.1602]
[1717767435220,2.1599,171.3,171.27,2.1602]
[1717767435401,2.1599,171.3,171.25,4.321]
[1717767435402,2.1601,171.29,171.21,155.05]
[1717767435713,2.16,171.3,171.26,2.1603]
[1717767435914,17.2978,171.33,171.25,4.3211]
[1717767435915,10.8191,171.33,171.25,4.3211]
[1717767436136,2.1596,171.33,171.29,2.1599]
[1717767436409,2.1596,171.33,171.29,2.16]
[1717767436599,2.1594,171.34,171.3,2.1599]
[1717767436795,2.1595,171.33,171.29,2.16]
[1717767436999,4.3184,171.36,171.3,2.1599]
[1717767437000,2.1595,171.34,171.3,2.1599]
[1717767437195,2.1595,171.34,171.29,2.16]
[1717767437795,2.1594,171.35,171.28,4.3203]
[1717767438008,6.4773,171.37,171.3,2.1598]
[1717767438209,2.1594,171.35,171.3,2.1598]
[1717767438802,2.1594,171.34,171.3,2.1598]
[1717767439815,2.1593,171.35,171.31,2.1597]
[1717767440022,2.1593,171.35,171.28,4.3203]
[1717767440023,2.1593,171.35,171.3,2.1598]
[1717767440207,2.1594,171.34,171.3,2.1598]
[1717767440516,2.1596,171.33,171.29,2.16]
[1717767440902,2.1595,171.34,171.29,2.16]
[1717767441298,2.1595,171.33,171.29,2.16]
[1717767442524,2.1595,171.34,171.3,2.1599]
[1717767442903,2.1593,171.35,171.31,2.1598]
[1717767443300,2.1593,171.35,171.3,2.1598]
[1717767443521,2.1593,171.35,171.31,2.1597]
[1717767444217,2.1592,171.36,171.31,2.1597]
[1717767444422,2.1592,171.36,171.32,2.1596]
[1717767445009,2.1593,171.35,171.31,2.1597]
[1717767446143,22.6442,171.42,171.31,120.0]
[1717767446419,2.1586,171.41,171.36,2.1591]
[1717767446825,2.1587,171.4,171.35,2.1592]
[1717767447195,2.1586,171.41,171.36,2.1591]
[1717767448930,6.0301,171.42,171.36,2.1591]
[1717767448931,2.1587,171.4,171.36,2.1591]
[1717767449105,8.4033,171.4,171.35,2.1592]
[1717767449308,6.2446,171.4,171.31,2.1597]
[1717767449611,6.2446,171.4,171.29,6.5085]
[1717767449612,2.1592,171.36,171.29,6.5085]
[1717767449825,2.1591,171.37,171.29,10.8285]
[1717767450017,2.1591,171.37,171.32,2.1596]
[1717767451151,2.1592,171.36,171.32,2.1596]
[1717767451451,2.1591,171.37,171.33,2.1595]
[1717767454117,2.159,171.38,171.34,2.1594]
[1717767454634,2.1588,171.39,171.34,2.1594]
[1717767455110,6.1327,171.38,171.34,2.1594]
[1717767455310,8.2916,171.38,171.31,4.3196]
[1717767455636,2.159,171.37,171.33,2.1595]
[1717767456628,2.159,171.37,171.32,2.1596]
[1717767457133,2.1592,171.36,171.31,2.1597]
[1717767457435,8.5233,171.37,171.32,2.1596]
[1717767457918,2.1592,171.36,171.32,2.1596]
[1717767458244,2.1592,171.36,171.29,4.3199]
[1717767459040,6.3642,171.37,171.31,2.1597]
[1717767459230,2.1593,171.35,171.31,2.1597]
[1717767460336,2.1592,171.36,171.32,2.1596]
[1717767460536,6.5466,171.35,171.3,2.1598]
[1717767460718,2.1595,171.34,171.3,2.1598]
[1717767461031,2.1595,171.34,171.27,4.3205]
[1717767461337,2.1595,171.33,171.27,4.3205]
[1717767461705,2.1595,171.34,171.27,4.3205]
[1717767461905,0.3452273,171.34,171.24,35.05]
[1717767462131,2.1596,171.33,171.28,2.16]
[1717767462722,2.1596,171.33,171.29,2.16]
[1717767465334,8.2811,171.33,171.29,2.16]
[1717767467630,6.0598,171.33,171.23,35.05]
[1717767467821,2.1601,171.29,171.25,2.1605]
[1717767468021,8.2199,171.29,171.25,2.1605]
[1717767468234,8.2199,171.29,171.26,2.1604]
[1717767468538,6.0598,171.29,171.26,2.1604]
[1717767469940,6.0598,171.29,171.26,2.1604]
[1717767470644,6.0598,171.29,171.24,4.3213]
[1717767471040,8.2198,171.29,171.25,2.1604]
[1717767471432,6.0598,171.29,171.26,2.1604]
[1717767472236,2.16,171.3,171.26,2.1604]
[1717767472641,2.1599,171.3,171.27,2.1603]
[1717767472826,2.1598,171.31,171.27,2.1603]
[1717767473538,19.3893,171.33,171.26,2.1603]
[1717767473539,2.1599,171.3,171.26,2.1603]
[1717767474045,25.8681,171.33,171.27,2.1603]
[1717767474342,2.1599,171.3,171.24,4.3212]
[1717767477545,2.1599,171.3,171.26,2.1604]
[1717767478028,2.1601,171.29,171.21,35.05]
[1717767478219,2.1601,171.29,171.25,2.1605]
[1717767478422,2.16,171.3,171.26,2.1604]
[1717767479055,8.3721,171.29,171.25,2.1605]
[1717767479359,2.1602,171.28,171.24,2.1606]
[1717767479736,2.1602,171.28,171.22,4.3217]
[1717767479928,6.212,171.29,171.22,4.3217]
[1717767480248,4.3194,171.32,171.2,155.05]
[1717767480438,2.1599,171.3,171.26,2.1603]
[1717767480848,2.16,171.29,171.25,2.1605]
[1717767481231,2.1602,171.28,171.24,2.1606]
[1717767481431,2.1601,171.29,171.24,2.1606]
[1717767481752,2.1602,171.28,171.24,2.1606]
[1717767482538,2.1601,171.29,171.24,2.1606]
[1717767483073,2.1603,171.27,171.2,35.05]
[1717767483754,2.1602,171.28,171.23,2.1607]
[1717767484540,2.1602,171.28,171.24,2.1607]
[1717767485430,2.1602,171.28,171.2,39.3722]
[1717767485851,0.3452273,171.3,171.2,35.05]
[1717767486057,0.3452273,171.3,171.22,2.1608]
[1717767486058,2.1603,171.27,171.22,2.1608]
[1717767486462,2.1603,171.27,171.23,2.1608]
[1717767487430,2.1602,171.28,171.23,2.1608]
[1717767489153,2.1603,171.27,171.23,2.1608]
[1717767493629,30.7998,171.3,171.23,2.1608]
[1717767494350,2.1603,171.27,171.23,2.1608]
[1717767494543,2.1599,171.3,171.22,120.0]
[1717767494754,2.1599,171.3,171.25,2.1604]
[1717767495059,2.1598,171.31,171.26,2.1604]
[1717767495560,6.1925,171.34,171.28,2.1601]
[1717767495852,2.1597,171.33,171.28,2.1601]
[1717767496551,10.7966,171.35,171.28,2.1601]
[1717767496931,2.1597,171.32,171.28,2.1601]
[1717767498055,2.1594,171.34,171.29,2.16]
[1717767498935,2.1593,171.35,171.3,2.1599]
[1717767499557,2.1592,171.36,171.31,2.1598]
[1717767500144,2.1593,171.35,171.28,4.3203]
[1717767500342,2.1594,171.34,171.3,2.1598]
[1717767500545,2.1594,171.34,171.29,2.1599]
[1717767501628,2.1594,171.34,171.3,2.1599]
[1717767502563,2.1595,171.33,171.29,2.16]
[1717767503444,2.1595,171.34,171.29,2.16]
[1717767503658,2.1595,171.34,171.3,2.1599]
[1717767503962,2.1593,171.35,171.3,2.1599]
[1717767506962,2.1593,171.35,171.31,2.1598]
[1717767508063,2.1594,171.34,171.3,2.1599]
[1717767508258,2.1596,171.33,171.28,2.1601]
[1717767508442,2.1597,171.32,171.27,2.1602]
[1717767509159,2.5048273,171.33,171.28,2.1601]
[1717767509357,2.1596,171.33,171.29,2.16]
[1717767510056,2.1596,171.33,171.26,4.3208]
[1717767511342,2.1596,171.33,171.25,6.279]
[1717767511343,2.1595,171.34,171.27,4.3206]
[1717767511546,2.1596,171.33,171.29,2.16]
[1717767512741,2.1595,171.34,171.3,2.1599]
[1717767512945,4.3184,171.36,171.3,2.1599]
[1717767512946,2.1594,171.35,171.3,2.1599]
[1717767513663,2.1594,171.34,171.3,2.1599]
[1717767513843,2.1593,171.35,171.3,2.1599]
[1717767514745,2.1595,171.34,171.3,2.1599]
[1717767516443,21.19866443,171.37,171.28,4.3203]
[1717767516444,2.1593,171.35,171.28,4.3203]
[1717767516644,2.1593,171.35,171.31,2.1598]
[1717767517348,2.1592,171.36,171.32,2.1596]
[1717767517549,2.1592,171.36,171.29,4.3201]
[1717767520374,2.1593,171.35,171.29,4.3201]
[1717767520558,2.1592,171.36,171.29,4.3201]
[1717767521659,2.1591,171.37,171.33,2.1595]
[1717767521860,2.1591,171.37,171.27,155.05]
[1717767522267,2.1591,171.37,171.32,8.305]
[1717767522669,2.1592,171.36,171.32,8.305]
[1717767522865,2.1591,171.37,171.32,8.305]
[1717767523457,2.1591,171.37,171.32,6.1455]
[1717767524273,2.1591,171.37,171.33,2.1594]
[1717767524477,6.4754,171.42,171.31,155.05]
[1717767524775,2.1588,171.39,171.35,2.1592]
[1717767526958,2.1588,171.39,171.35,2.1592]
[1717767527675,10.7923,171.42,171.35,2.1592]
[1717767527676,2.1587,171.4,171.35,2.1592]
[1717767528059,2.1587,171.4,171.33,4.319]
[1717767530059,2.1587,171.4,171.36,2.1591]
[1717767530784,2.1587,171.4,171.35,2.1592]
[1717767530962,10.7922,171.42,171.35,2.1592]
[1717767530963,2.1588,171.39,171.35,2.1592]
[1717767531173,2.1587,171.4,171.36,2.1591]
[1717767531773,2.1591,171.37,171.32,2.1595]
[1717767531985,23.1999273,171.39,171.25,6.6435]
[1717767532183,4.3187,171.35,171.28,2.1601]
[1717767532477,4.3187,171.35,171.29,2.16]
[1717767532775,8.6366,171.37,171.25,6.6435]
[1717767532776,2.1595,171.34,171.3,2.1599]
[1717767532979,2.1595,171.34,171.31,2.1598]
[1717767533579,2.1595,171.34,171.3,2.1598]
[1717767533782,2.1592,171.36,171.29,4.3201]
[1717767534365,2.1592,171.36,171.3,4.3198]
[1717767534683,2.1592,171.36,171.32,2.1596]
[1717767535373,2.1593,171.35,171.31,2.1597]
[1717767535683,30.7947,171.38,171.32,2.1596]
[1717767535684,2.1592,171.36,171.32,2.1596]
[1717767539089,2.1593,171.35,171.31,2.1597]
[1717767539788,2.1592,171.36,171.32,2.1596]
[1717767540294,2.1593,171.35,171.32,2.1596]
[1717767540480,2.1592,171.36,171.32,2.1596]
[1717767542473,4.3179,171.38,171.31,6.6086]
[1717767542474,2.1593,171.35,171.31,8.7683]
[1717767542674,2.1593,171.35,171.31,2.1597]
[1717767542874,2.1593,171.35,171.32,2.1596]
[1717767544591,2.1593,171.35,171.29,4.32]
[1717767545663,2.1592,171.36,171.32,2.1596]
[1717767549496,2.1592,171.36,171.3,4.3198]
[1717767549895,4.3179,171.38,171.3,4.3198]
[1717767550080,2.1591,171.37,171.33,2.1595]
[1717767551001,2.1592,171.36,171.33,2.1595]
[1717767551676,2.1592,171.36,171.32,2.1596]
[1717767552880,2.1593,171.35,171.29,4.3199]
[1717767553504,10.7967,171.35,171.27,6.4462]
[1717767553695,2.1597,171.32,171.28,2.1601]
[1717767554093,2.1597,171.32,171.27,6.4462]
[1717767554392,2.1596,171.33,171.3,2.1599]
[1717767555099,2.1595,171.34,171.3,2.1599]
[1717767556507,2.1595,171.33,171.3,2.1599]
[1717767556699,2.1595,171.33,171.29,2.1599]
[1717767557198,2.1595,171.33,171.3,2.1599]
[1717767557400,2.1595,171.34,171.3,2.1599]
[1717767559094,2.1595,171.34,171.31,2.1598]
[1717767559602,2.1593,171.35,171.31,2.1598]
[1717767559795,2.1593,171.35,171.32,2.1596]
[1717767560107,2.1593,171.35,171.29,4.32]
[1717767563510,2.1594,171.34,171.29,4.32]
[1717767563720,2.1593,171.35,171.29,20.2086]
[1717767563894,2.1593,171.35,171.31,8.1897]
[1717767564111,4.3181,171.37,171.31,8.1897]
[1717767564112,4.3181,171.37,171.32,2.1596]
[1717767564416,2.1592,171.36,171.32,2.1596]
[1717767564593,2.1593,171.35,171.32,2.1596]
[1717767564788,2.1592,171.36,171.32,2.1596]
[1717767565502,2.1592,171.36,171.32,8.3167]
[1717767566510,2.1593,171.35,171.32,8.3167]
[1717767567212,2.1591,171.37,171.33,2.1594]
[1717767567412,2.1591,171.37,171.32,6.1571]
[1717767567709,2.1592,171.36,171.32,8.3167]
[1717767569015,10.7973,171.34,171.27,2.1603]
[1717767569189,2.16,171.3,171.26,2.1603]
[1717767569386,2.1598,171.31,171.27,2.1602]
[1717767569999,2.1597,171.32,171.28,2.1602]
[1717767570600,2.1596,171.33,171.29,2.16]
[1717767572000,15.4613273,171.34,171.24,4.3212]
[1717767572202,2.1598,171.31,171.27,2.1602]
[1717767573426,4.3191,171.33,171.23,35.05]
[1717767573427,2.1599,171.3,171.26,2.1603]
[1717767573630,4.3194,171.32,171.23,4.3215]
[1717767573822,2.16,171.3,171.24,4.3214]
[1717767574127,4.3194,171.32,171.26,2.1603]
[1717767574301,2.1598,171.31,171.27,2.1603]
[1717767575902,2.1597,171.32,171.28,2.1602]
[1717767576395,2.1596,171.33,171.29,2.16]
[1717767577537,2.1597,171.32,171.28,2.1601]
[1717767578014,2.1598,171.31,171.27,2.1602]
[1717767579219,2.1598,171.31,171.25,4.321]
[1717767579220,2.1597,171.32,171.28,2.1601]
[1717767581405,2.1598,171.31,171.28,2.1601]
[1717767582636,2.1597,171.32,171.28,2.1601]
[1717767584537,4.3189,171.34,171.28,2.1601]
[1717767584538,2.1598,171.31,171.28,2.1601]
[1717767585610,2.1597,171.32,171.28,2.1601]
[1717767585905,2.1598,171.31,171.26,4.3208]
[1717767586129,2.1597,171.32,171.28,2.1601]
[1717767586714,2.1598,171.31,171.28,2.1601]
[1717767587932,2.1597,171.32,171.28,2.1601]
[1717767588119,2.1598,171.31,171.28,2.1601]
[1717767588938,2.1597,171.32,171.28,2.1601]
[1717767591234,2.1598,171.31,171.28,2.1601]
[1717767591708,2.1598,171.31,171.27,2.1602]
[1717767592218,2.1598,171.31,171.28,2.1601]
[1717767592613,15.4631273,171.32,171.24,4.3213]
[1717767592816,4.3197,171.31,171.24,4.3213]
[1717767593122,4.3197,171.31,171.26,2.1604]
[1717767593327,2.16,171.3,171.26,2.1604]
[1717767593707,2.16,171.3,171.24,4.3213]
[1717767594727,2.16,171.3,171.27,2.1602]
[1717767595120,2.1598,171.31,171.27,2.1602]
[1717767597441,2.1599,171.3,171.26,2.1603]
[1717767597624,4.3196,171.31,171.21,26.62675449]
[1717767598116,2.16,171.3,171.26,2.1603]
[1717767600340,2.1601,171.29,171.26,2.1603]
[1717767601255,2.16,171.3,171.26,2.1603]
[1717767601627,2.16,171.3,171.26,1.6603]
[1717767601821,8.6377,171.34,171.25,4.3211]
[1717767602142,2.1599,171.31,171.25,4.3211]
[1717767602441,2.1599,171.31,171.27,2.1602]
[1717767603149,2.1599,171.3,171.26,2.1603]
[1717767605357,2.1599,171.3,171.27,2.1603]
[1717767605571,2.1599,171.31,171.27,2.1603]
[1717767605862,2.1599,171.3,171.26,2.1603]
[1717767606165,2.1602,171.28,171.25,2.1605]
[1717767606657,10.7991,171.31,171.25,2.1605]
[1717767606658,2.1601,171.29,171.25,2.1605]
[1717767606867,2.16,171.3,171.26,2.1604]
[1717767607155,2.16,171.29,171.26,2.1604]
[1717767607359,2.16,171.29,171.23,4.3215]
[1717767608833,2.16,171.3,171.23,4.3215]
[1717767609227,2.16,171.29,171.23,4.3215]
[1717767611354,2.16,171.3,171.23,4.3215]
[1717767611555,2.1601,171.29,171.21,21.898]
[1717767611759,2.1601,171.29,171.22,4.3217]
[1717767612139,2.1601,171.29,171.25,2.1605]
[1717767612449,2.1601,171.29,171.26,2.1604]
[1717767612649,2.1601,171.29,171.23,4.3216]
[1717767613148,2.1601,171.29,171.25,2.1605]
[1717767613353,2.16,171.3,171.26,2.1604]
[1717767613659,2.1599,171.3,171.27,2.1602]
[1717767614161,2.1599,171.3,171.26,2.1603]
[1717767614662,2.1601,171.29,171.26,2.1603]
[1717767615037,2.16,171.3,171.26,2.1603]
[1717767618546,2.16,171.3,171.21,21.898]
[1717767618547,2.1598,171.32,171.28,2.1601]
[1717767619567,2.1598,171.32,171.23,120.0]
[1717767619867,2.1598,171.32,171.28,2.1601]
[1717767621568,2.1598,171.31,171.28,2.1601]
[1717767621957,2.1597,171.32,171.28,2.1601]
[1717767622267,2.1598,171.31,171.27,2.1602]
[1717767622774,2.1597,171.32,171.28,2.1601]
[1717767623445,2.1598,171.31,171.27,2.1602]
[1717767623641,6.4783,171.35,171.21,176.948]
[1717767623837,15.1157,171.35,171.26,4.3206]
[1717767624237,2.1597,171.32,171.28,2.1601]
[1717767625843,2.1598,171.31,171.27,2.1602]
[1717767626773,2.1597,171.32,171.28,2.1601]
[1717767626950,15.1157,171.35,171.26,4.3206]
[1717767627149,2.1597,171.32,171.26,4.3206]
[1717767627562,2.1597,171.32,171.28,2.1601]
[1717767627975,4.3193,171.33,171.21,176.948]
[1717767628189,2.1598,171.31,171.27,2.1602]
[1717767630060,2.1597,171.32,171.28,2.1601]
[1717767631471,2.1596,171.33,171.29,2.16]
[1717767631956,12.7648,171.39,171.27,6.118]
[1717767632159,2.1592,171.36,171.27,41.168]
[1717767632668,2.1591,171.37,171.32,2.1596]
[1717767633473,2.1592,171.36,171.32,2.1596]
[1717767635788,6.07895733,171.4,171.27,56.4978]
[1717767635946,2.159,171.38,171.33,2.1594]
[1717767637374,2.159,171.38,171.29,120.0]
[1717767637578,2.159,171.38,171.34,2.1593]
[1717767637766,2.1588,171.39,171.35,2.1592]
[1717767638369,2.1587,171.4,171.36,2.1591]
[1717767638974,19.426,171.42,171.35,2.1592]
[1717767639971,2.1592,171.36,171.32,2.1596]
[1717767640176,2.1593,171.35,171.31,2.1597]
[1717767640556,2.1594,171.34,171.31,2.1597]
[1717767641286,2.1593,171.35,171.31,2.1597]
[1717767641474,2.1593,171.35,171.32,2.1596]
[1717767641776,2.1593,171.35,171.29,4.32]
[1717767643484,2.5044273,171.36,171.3,4.3198]
[1717767643789,2.5044273,171.36,171.32,2.1596]
[1717767646889,2.5044273,171.36,171.3,4.3198]
[1717767648382,2.1593,171.35,171.3,4.3198]
[1717767648678,2.1592,171.36,171.3,4.3198]
[1717767649573,2.5044273,171.36,171.32,2.1596]
[1717767650186,2.1592,171.36,171.33,2.1595]
[1717767650368,2.1592,171.36,171.32,2.1596]
[1717767650683,2.1592,171.36,171.33,2.1595]
[1717767651187,4.3179,171.38,171.33,2.1595]
[1717767651391,2.1592,171.36,171.3,4.3198]
[1717767651565,2.1591,171.37,171.3,4.3198]
[1717767652393,2.1591,171.37,171.31,45.0]
[1717767653487,2.1589,171.38,171.32,4.3193]
[1717767653695,2.1589,171.38,171.33,45.0]
[1717767654770,2.1589,171.38,171.34,2.1593]
[1717767655685,2.159,171.37,171.34,2.1593]
[1717767656188,2.159,171.38,171.35,2.1593]
[1717767656496,2.1588,171.39,171.35,2.1593]
[1717767658892,10.6444,171.39,171.27,149.56634623]
[1717767659197,2.1592,171.36,171.32,2.1596]
[1717767660295,4.3185,171.36,171.27,41.168]
[1717767660470,2.1593,171.35,171.27,41.168]
[1717767660671,4.6634273,171.37,171.27,41.168]
[1717767660869,2.1593,171.35,171.27,41.168]
[1717767661088,4.3184,171.36,171.29,2.1599]
[1717767661307,2.1594,171.34,171.29,2.1599]
[1717767661490,0.3452273,171.35,171.28,2.1601]
[1717767661685,2.1596,171.33,171.28,2.1601]
[1717767661883,4.6639273,171.35,171.27,2.1602]
[1717767662101,2.1597,171.32,171.27,2.1602]
[1717767662506,2.1597,171.32,171.28,2.1602]
[1717767662798,2.1597,171.32,171.23,6.0381]
[1717767662799,4.6647273,171.32,171.23,6.0381]
[1717767663004,4.6647273,171.32,171.21,4.322]
[1717767663493,2.16,171.3,171.25,2.1605]
[1717767663800,2.1593,171.35,171.21,155.05]
[1717767663979,2.1594,171.35,171.23,155.05]
[1717767664181,8.2562,171.37,171.31,2.1597]
[1717767664386,8.2562,171.37,171.32,2.1596]
[1717767664982,8.2562,171.37,171.31,2.1597]
[1717767665200,2.1592,171.36,171.31,2.1597]
[1717767665419,2.1593,171.35,171.3,2.1599]
[1717767665602,6.6503,171.33,171.25,35.05]
[1717767665817,2.1599,171.3,171.25,2.1605]
[1717767666629,6.3616,171.29,171.25,2.1605]
[1717767666929,2.1599,171.3,171.25,2.1605]
[1717767667424,8.5049,171.31,171.26,2.1604]
[1717767670832,8.5049,171.31,171.27,2.1603]
[1717767671000,2.1598,171.31,171.27,2.1603]
[1717767671500,2.1596,171.33,171.22,155.05]
[1717767671707,2.1595,171.34,171.23,80.05]
[1717767671908,2.1595,171.34,171.3,2.1599]
[1717767672309,8.3868,171.35,171.3,2.1599]
[1717767672514,20.3486,171.38,171.31,2.1597]
[1717767672916,16.0306,171.38,171.29,4.32]
[1717767673122,2.1591,171.37,171.32,2.1596]
[1717767673323,2.1591,171.37,171.33,2.1595]
[1717767673538,12.68593507,171.39,171.35,2.1592]
[1717767673539,2.1588,171.39,171.35,2.1592]
[1717767674017,2.1588,171.39,171.34,2.1593]
[1717767674217,2.1589,171.38,171.34,2.1594]
[1717767675225,2.1588,171.39,171.34,2.1594]
[1717767675416,2.5039273,171.4,171.33,45.0]
[1717767675723,2.1586,171.41,171.36,2.159]
[1717767676829,2.1586,171.4,171.36,2.159]
[1717767678040,2.1586,171.4,171.35,2.1592]
[1717767679840,2.1592,171.36,171.31,2.1597]
[1717767680221,2.1592,171.36,171.32,2.1596]
[1717767680645,2.159,171.37,171.33,2.1595]
[1717767681336,2.1592,171.36,171.32,2.1596]
[1717767682340,2.1591,171.37,171.33,2.1595]
[1717767683022,2.1592,171.36,171.33,2.1595]
[1717767683443,2.1592,171.36,171.32,2.1596]
[1717767683633,2.1591,171.37,171.33,2.1595]
[1717767685965,4.3179,171.38,171.3,4.3198]